fUST/lending_fUST_20250615
["ID","MTS","AMOUNT","RATE_DAILY","PERIOD"]
[365898649,1749978641788,-661.85,0.00022388,2]
[365898651,1749978641797,-1332.84,0.00022388,2]
[365898653,1749978641807,-460.0,0.00022388,2]
[365898655,1749978641817,-460.0,0.00022388,2]
[365898657,1749978641825,-489.47,0.00022388,2]
[365898659,1749978641834,-4157.18,0.00022404,2]
[365898661,1749978641843,-1177.96,0.00022404,2]
[365898663,1749978641853,-460.0,0.00022404,2]
[365898665,1749978641862,-460.0,0.00022404,2]
[365898667,1749978641871,-460.0,0.00022404,2]
[365898669,1749978641880,-460.0,0.00022404,2]
[365898671,1749978641889,-475.7,0.00022404,2]
[365898673,1749978641898,-460.0,0.00022404,2]
[365898675,1749978641909,-460.0,0.00022404,2]
[365898676,1749978641918,-460.0,0.00022404,2]
[365898678,1749978641928,-485.11,0.00022406,2]
[365898680,1749978641937,-1205.04,0.00022406,2]
[365898682,1749978641947,-740.0,0.00022406,2]
[365898684,1749978641955,-460.0,0.00022406,2]
[365898686,1749978641965,-1396.02,0.00022406,2]
[365898688,1749978641975,-1602.96,0.00022406,2]
[365898690,1749978641984,-666.0,0.00022406,2]
[365898692,1749978641993,-2759.97,0.00022406,2]
[365898694,1749978642002,-461.99,0.00022408,2]
[365898696,1749978642011,-460.0,0.00022408,2]
[365898698,1749978642021,-555.67,0.00022408,2]
[365898700,1749978642031,-460.0,0.00022408,2]
[365898702,1749978642040,-588.85,0.00022408,2]
[365898704,1749978642049,-490.16,0.00022408,2]
[365898707,1749978642067,-461.74,0.00022408,2]
[365898709,1749978642078,-207.4,0.00022431,2]
[365898711,1749978642087,-1000.0,0.00022438,2]
[365898713,1749978642096,-1000.0,0.00022438,2]
[365898715,1749978642106,-1000.0,0.00022438,2]
[365898717,1749978642116,-1000.0,0.00022438,2]
[365898719,1749978642126,-1000.0,0.00022438,2]
[365898721,1749978642135,-1000.0,0.00022438,2]
[365898724,1749978642145,-1000.0,0.00022438,2]
[365898726,1749978642155,-1000.0,0.00022438,2]
[365898728,1749978642164,-1000.0,0.00022438,2]
[365898730,1749978642174,-1000.0,0.00022438,2]
[365898732,1749978642183,-1000.0,0.00022438,2]
[365898734,1749978642192,-1000.0,0.00022438,2]
[365898736,1749978642202,-1000.0,0.00022438,2]
[365898738,1749978642212,-1000.0,0.00022438,2]
[365898740,1749978642221,-924.60234557,0.00022438,2]
[365898742,1749978642232,-1460.7552605,0.00022452,7]
[365898744,1749978642241,-304.26549004,0.00022458,2]
[365898746,1749978642251,-500.0,0.00022464,2]
[365898748,1749978642261,-500.0,0.00022464,2]
[365898750,1749978642270,-316.27,0.00022464,2]
[365898752,1749978642279,-500.0,0.00022465,2]
[365898754,1749978642289,-500.0,0.00022469,2]
[365898756,1749978642299,-500.0,0.00022469,2]
[365898757,1749978642308,-484.47434949,0.00022469,2]
[365898758,1749978642318,-500.0,0.00022469,2]
[365898759,1749978642327,-500.0,0.00022471,2]
[365898760,1749978642337,-500.0,0.00022471,2]
[365898761,1749978642346,-500.0,0.00022471,2]
[365898762,1749978642355,-500.0,0.00022471,2]
[365898763,1749978642365,-500.0,0.00022471,2]
[365898764,1749978642376,-500.0,0.00022471,2]
[365898765,1749978642387,-500.0,0.00022471,2]
[365898767,1749978642396,-500.0,0.00022471,2]
[365898769,1749978642406,-500.0,0.00022471,2]
[365898771,1749978642415,-500.0,0.00022471,2]
[365898773,1749978642424,-500.0,0.00022471,2]
[365898775,1749978642434,-503.34287607,0.00022471,2]
[365898778,1749978642445,-519.043125,0.00022471,2]
[365898780,1749978642458,-500.0,0.00022471,2]
[365898782,1749978642467,-500.0,0.00022471,2]
[365898784,1749978642477,-500.0,0.00022471,2]
[365898786,1749978642486,-500.0,0.00022471,2]
[365898789,1749978642498,-500.0,0.00022471,2]
[365898791,1749978642507,-600.0,0.00022471,2]
[365898793,1749978642517,-500.0,0.00022471,2]
[365898796,1749978642528,-500.0,0.00022471,2]
[365898798,1749978642537,-500.0,0.00022471,2]
[365898801,1749978642547,-500.0,0.00022471,2]
[365898803,1749978642557,-661.92614653,0.00022485,2]
[365898805,1749978642566,-1054.06,0.000225,7]
[365898807,1749978642576,-1460.7552605,0.00022624,7]
[365898809,1749978642585,-395.14137315,0.00022661,2]
[365898811,1749978642595,-460.0,0.00022661,2]
[365898813,1749978642604,-909.74,0.00022661,2]
[365898815,1749978642614,-1167.27,0.00022661,2]
[365898817,1749978642624,-1001.26,0.00022661,2]
[365898819,1749978642635,-460.0,0.00022662,2]
[365898821,1749978642644,-460.0,0.00022662,2]
[365898824,1749978642654,-2249.89,0.00022662,2]
[365898826,1749978642663,-2585.78,0.00022662,2]
[365898829,1749978642673,-2542.55,0.00022662,2]
[365898831,1749978642683,-1089.08,0.00022662,2]
[365898833,1749978642693,-460.0,0.00022662,2]
[365898835,1749978642703,-460.0,0.00022662,2]
[365898837,1749978642712,-460.0,0.00022662,2]
[365898839,1749978642722,-460.0,0.00022662,2]
[365898841,1749978642731,-661.85,0.00022662,2]
[365898843,1749978642740,-1332.84,0.00022662,2]
[365898845,1749978642750,-459.02399079,0.00022662,2]
[365898847,1749978642760,-460.0,0.00022662,2]
[365898849,1749978642769,-489.47,0.00022662,2]
[365898851,1749978642778,-4157.18,0.00022678,2]
[365898853,1749978642787,-1177.96,0.00022678,2]
[365898855,1749978642796,-460.0,0.00022678,2]
[365898857,1749978642805,-460.0,0.00022678,2]
[365898859,1749978642814,-460.0,0.00022678,2]
[365898861,1749978642825,-460.0,0.00022678,2]
[365898863,1749978642834,-475.7,0.00022678,2]
[365898865,1749978642843,-460.0,0.00022678,2]
[365898867,1749978642853,-460.0,0.00022678,2]
[365898869,1749978642862,-460.0,0.00022678,2]
[365898871,1749978642873,-485.11,0.0002268,2]
[365898873,1749978642882,-1205.04,0.0002268,2]
[365898875,1749978642892,-740.0,0.0002268,2]
[365898877,1749978642902,-460.0,0.0002268,2]
[365898879,1749978642911,-1396.02,0.0002268,2]
[365898881,1749978642920,-1602.96,0.0002268,2]
[365898883,1749978642929,-666.0,0.0002268,2]
[365898886,1749978642939,-2759.97,0.0002268,2]
[365898888,1749978642948,-461.99,0.00022682,2]
[365898890,1749978642957,-460.0,0.00022682,2]
[365898892,1749978642967,-555.67,0.00022682,2]
[365898894,1749978642976,-460.0,0.00022682,2]
[365898896,1749978642985,-588.85,0.00022682,2]
[365898898,1749978642994,-490.16,0.00022682,2]
[365898900,1749978643004,-461.74,0.00022682,2]
[365898902,1749978643013,-160.0993334,0.00022767,2]
[365898904,1749978643022,-1460.7552605,0.00022797,7]
[365898906,1749978643031,-151.0,0.000228,7]
[365898908,1749978643041,-1000.0,0.00022829,2]
[365898910,1749978643050,-1000.0,0.00022829,2]
[365898912,1749978643059,-460.0,0.00022935,2]
[365898914,1749978643068,-909.74,0.00022935,2]
[365898916,1749978643078,-1167.27,0.00022935,2]
[365898918,1749978643087,-1001.26,0.00022935,2]
[365898920,1749978643097,-460.0,0.00022936,2]
[365898922,1749978643107,-460.0,0.00022936,2]
[365898924,1749978643116,-2249.89,0.00022936,2]
[365898926,1749978643125,-2585.78,0.00022936,2]
[365898928,1749978643135,-2542.55,0.00022936,2]
[365898930,1749978643145,-1089.08,0.00022936,2]
[365898932,1749978643153,-460.0,0.00022936,2]
[365898934,1749978643163,-460.0,0.00022936,2]
[365898937,1749978643172,-460.0,0.00022936,2]
[365898940,1749978643182,-460.0,0.00022936,2]
[365898943,1749978643192,-661.85,0.00022936,2]
[365898946,1749978643201,-1332.84,0.00022936,2]
[365898949,1749978643211,-460.0,0.00022936,2]
[365898951,1749978643220,-489.47,0.00022936,2]
[365898953,1749978643229,-4157.18,0.00022952,2]
[365898955,1749978643238,-1177.96,0.00022952,2]
[365898957,1749978643247,-460.0,0.00022952,2]
[365898959,1749978643257,-460.0,0.00022952,2]
[365898961,1749978643266,-460.0,0.00022952,2]
[365898963,1749978643276,-460.0,0.00022952,2]
[365898965,1749978643286,-475.7,0.00022952,2]
[365898967,1749978643296,-460.0,0.00022952,2]
[365898969,1749978643306,-460.0,0.00022952,2]
[365898971,1749978643315,-460.0,0.00022952,2]
[365898973,1749978643324,-485.11,0.00022953,2]
[365898975,1749978643334,-1205.04,0.00022953,2]
[365898990,1749978643344,-740.0,0.00022953,2]
[365898993,1749978643483,-499.72976915,0.00022953,2]
[365898995,1749978643493,-1396.02,0.00022953,2]
[365898997,1749978643502,-1602.96,0.00022953,2]
[365898999,1749978643511,-666.0,0.00022953,2]
[365899001,1749978643521,-2759.97,0.00022953,2]
[365899003,1749978643531,-461.99,0.00022956,2]
[365899005,1749978643540,-460.0,0.00022956,2]
[365899007,1749978643550,-555.67,0.00022956,2]
[365899009,1749978643559,-460.0,0.00022956,2]
[365899011,1749978643568,-588.85,0.00022956,2]
[365899013,1749978643577,-490.16,0.00022956,2]
[365899015,1749978643586,-461.74,0.00022956,2]
[365899017,1749978643596,-661.92614653,0.00022957,2]
[365899019,1749978643605,-1460.7552605,0.00022969,8]
[365899021,1749978643614,-1001.82273507,0.00023017,2]
[365899023,1749978643624,-1000.0,0.00023019,2]
[365899026,1749978643634,-501.65890684,0.00023019,2]
[365899028,1749978643643,-324.68665771,0.00023019,2]
[365899030,1749978643652,-500.0,0.00023019,2]
[365899032,1749978643661,-1000.0,0.00023019,2]
[365899034,1749978643670,-1000.0,0.00023019,2]
[365899036,1749978643679,-1002.3111618,0.00023019,2]
[365899038,1749978643689,-1000.0,0.00023019,2]
[365899040,1749978643698,-1000.0,0.00023019,2]
[365899042,1749978643708,-1007.55460346,0.00023019,2]
[365899044,1749978643719,-500.0,0.00023019,2]
[365899046,1749978643728,-1000.0,0.00023019,2]
[365899048,1749978643736,-1200.0,0.00023019,2]
[365899050,1749978643746,-1000.0,0.00023019,2]
[365899052,1749978643756,-1000.0,0.00023019,2]
[365899054,1749978643765,-500.0,0.00023038,2]
[365899056,1749978643774,-600.0,0.0002304,2]
[365899058,1749978643783,-500.0,0.00023056,2]
[365899060,1749978643792,-364.5268498,0.00023068,2]
[365899062,1749978643801,-160.0993334,0.00023068,2]
[365899064,1749978643811,-500.0,0.00023084,2]
[365899066,1749978643820,-365.3426848,0.00023096,2]
[365899068,1749978643829,-365.3426848,0.00023096,2]
[365899070,1749978643838,-151.0,0.000231,8]
[365899072,1749978643847,-500.0,0.00023119,2]
[365899074,1749978643856,-1460.7552605,0.00023141,8]
[365899076,1749978643865,-77466.28,0.000232,7]
[365899078,1749978643875,-500.0,0.00023204,2]
[365899080,1749978643885,-460.0,0.00023209,2]
[365899082,1749978643894,-909.74,0.00023209,2]
[365899084,1749978643903,-1167.27,0.00023209,2]
[365899086,1749978643912,-1001.26,0.00023209,2]
[365899088,1749978643922,-460.0,0.0002321,2]
[365899090,1749978643932,-460.0,0.0002321,2]
[365899092,1749978643941,-2249.89,0.0002321,2]
[365899094,1749978643952,-2585.78,0.0002321,2]
[365899096,1749978643962,-2542.55,0.0002321,2]
[365899098,1749978643971,-1089.08,0.0002321,2]
[365899100,1749978643980,-460.0,0.0002321,2]
[365899102,1749978643989,-460.0,0.0002321,2]
[365899104,1749978643999,-460.0,0.0002321,2]
[365899107,1749978644009,-460.0,0.0002321,2]
[365899109,1749978644018,-661.85,0.0002321,2]
[365899111,1749978644027,-1332.84,0.0002321,2]
[365899113,1749978644036,-460.0,0.0002321,2]
[365899115,1749978644046,-489.47,0.0002321,2]
[365899117,1749978644055,-4157.18,0.00023226,2]
[365899119,1749978644064,-1177.96,0.00023226,2]
[365899121,1749978644073,-460.0,0.00023226,2]
[365899123,1749978644083,-460.0,0.00023226,2]
[365899125,1749978644092,-460.0,0.00023226,2]
[365899127,1749978644102,-460.0,0.00023226,2]
[365899129,1749978644112,-475.7,0.00023226,2]
[365899131,1749978644121,-460.0,0.00023226,2]
[365899133,1749978644131,-460.0,0.00023226,2]
[365899135,1749978644141,-460.0,0.00023226,2]
[365899137,1749978644151,-485.11,0.00023227,2]
[365899139,1749978644161,-1205.04,0.00023227,2]
[365899141,1749978644170,-740.0,0.00023227,2]
[365899143,1749978644180,-1396.02,0.00023227,2]
[365899145,1749978644191,-1602.96,0.00023227,2]
[365899147,1749978644201,-666.0,0.00023227,2]
[365899149,1749978644211,-2759.97,0.00023227,2]
[365899151,1749978644221,-461.99,0.0002323,2]
[365899153,1749978644231,-460.0,0.0002323,2]
[365899155,1749978644242,-555.67,0.0002323,2]
[365899157,1749978644252,-460.0,0.0002323,2]
[365899159,1749978644262,-588.85,0.0002323,2]
[365899161,1749978644272,-490.16,0.0002323,2]
[365899163,1749978644281,-461.74,0.0002323,2]
[365899165,1749978644291,-204.75,0.00023242,2]
[365899167,1749978644300,-606.18394068,0.0002328,2]
[365899169,1749978644311,-1460.7552605,0.00023314,9]
[365899171,1749978644320,-160.0993334,0.0002337,2]
[365899173,1749978644330,-1500.0,0.00023377,2]
[365899175,1749978644339,-1503.85528964,0.00023377,2]
[365899177,1749978644349,-434.3016927,0.00023398,2]
[365899179,1749978644359,-3000.0,0.000234,2]
[365899181,1749978644368,-3000.0,0.0002341,2]
[365899183,1749978644378,-3000.0,0.0002342,2]
[365899185,1749978644388,-661.92614653,0.00023428,2]
[365899187,1749978644397,-3000.0,0.0002343,2]
[365899189,1749978644407,-500.0,0.00023435,2]
[365899191,1749978644416,-3000.0,0.0002344,2]
[365899193,1749978644425,-3000.0,0.0002345,2]
[365899195,1749978644435,-3000.0,0.0002346,2]
[365899197,1749978644445,-3000.0,0.0002347,2]
[365899199,1749978644458,-3000.0,0.0002348,2]
[365899201,1749978644467,-460.0,0.00023483,2]
[365899203,1749978644477,-909.74,0.00023483,2]
[365899205,1749978644487,-1167.27,0.00023483,2]
[365899207,1749978644498,-1001.26,0.00023483,2]
[365899209,1749978644507,-460.0,0.00023484,2]
[365899211,1749978644517,-460.0,0.00023484,2]
[365899213,1749978644527,-2249.89,0.00023484,2]
[365899215,1749978644538,-2585.78,0.00023484,2]
[365899217,1749978644548,-2542.55,0.00023484,2]
[365899219,1749978644558,-1089.08,0.00023484,2]
[365899221,1749978644569,-460.0,0.00023484,2]
[365899223,1749978644578,-460.0,0.00023484,2]
[365899225,1749978644588,-460.0,0.00023484,2]
[365899227,1749978644597,-460.0,0.00023484,2]
[365899229,1749978644606,-661.85,0.00023484,2]
[365899231,1749978644616,-1332.84,0.00023484,2]
[365899233,1749978644625,-427.66057851,0.00023484,2]
[365899235,1749978644635,-489.47,0.00023484,2]
[365899237,1749978644645,-1460.7552605,0.00023486,9]
[365899239,1749978644655,-3000.0,0.0002349,2]
[365899241,1749978644665,-3000.0,0.000235,2]
[365899243,1749978644674,-601.2,0.000235,7]
[365899245,1749978644686,-4157.18,0.000235,2]
[365899248,1749978644696,-151.0,0.000235,5]
[365899250,1749978644706,-1177.96,0.000235,2]
[365899252,1749978644717,-460.0,0.000235,2]
[365899254,1749978644726,-460.0,0.000235,2]
[365899256,1749978644736,-460.0,0.000235,2]
[365899258,1749978644746,-460.0,0.000235,2]
[365899260,1749978644755,-475.7,0.000235,2]
[365899262,1749978644764,-460.0,0.000235,2]
[365899264,1749978644773,-460.0,0.000235,2]
[365899266,1749978644783,-460.0,0.000235,2]
[365899268,1749978644792,-485.11,0.00023501,2]
[365899270,1749978644801,-1205.04,0.00023501,2]
[365899272,1749978644811,-740.0,0.00023501,2]
[365899274,1749978644821,-1396.02,0.00023501,2]
[365899276,1749978644830,-1602.96,0.00023501,2]
[365899278,1749978644840,-666.0,0.00023501,2]
[365899280,1749978644849,-2759.97,0.00023501,2]
[365899282,1749978644859,-461.99,0.00023504,2]
[365899284,1749978644869,-460.0,0.00023504,2]
[365899286,1749978644879,-555.67,0.00023504,2]
[365899288,1749978644889,-460.0,0.00023504,2]
[365899290,1749978644898,-588.85,0.00023504,2]
[365899292,1749978644907,-490.16,0.00023504,2]
[365899294,1749978644916,-461.74,0.00023504,2]
[365899296,1749978644926,-3000.0,0.0002351,2]
[365899298,1749978644936,-3000.0,0.0002352,2]
[365899300,1749978644947,-1599.625827,0.0002352,3]
[365899302,1749978644957,-3000.0,0.0002353,2]
[365899304,1749978644966,-964.0,0.00023536,2]
[365899306,1749978644976,-2160.0,0.00023536,2]
[365899308,1749978644986,-653.0,0.00023536,2]
[365899310,1749978644996,-3000.0,0.0002354,2]
[365899312,1749978645006,-3000.0,0.0002355,2]
[365899314,1749978645017,-3000.0,0.0002356,2]
[365899316,1749978645026,-200.0,0.00023561,2]
[365899318,1749978645036,-200.0,0.00023561,2]
[365899320,1749978645046,-200.0,0.00023561,2]
[365899322,1749978645056,-239.3730385,0.00023561,2]
[365899324,1749978645066,-500.0,0.00023565,2]
[365899326,1749978645076,-1500.0,0.00023567,2]
[365899328,1749978645085,-394.24716771,0.00023567,2]
[365899330,1749978645095,-1500.0,0.00023567,2]
[365899332,1749978645104,-180.04360434,0.00023567,2]
[365899334,1749978645114,-1800.0,0.00023567,2]
[365899336,1749978645125,-3000.0,0.0002357,2]
[365899338,1749978645136,-500.0,0.00023578,2]
[365899340,1749978645147,-3000.0,0.0002358,2]
[365899342,1749978645158,-3000.0,0.0002359,2]
[365899344,1749978645168,-500.0,0.00023595,2]
[365899346,1749978645178,-3000.0,0.000236,2]
[365899348,1749978645188,-500.0,0.00023608,2]
[365899350,1749978645199,-3000.0,0.0002361,2]
[365899352,1749978645209,-3000.0,0.0002362,2]
[365899354,1749978645220,-168.0,0.00023624,2]
[365899356,1749978645230,-3000.0,0.0002363,2]
[365899358,1749978645239,-500.0,0.00023639,2]
[365899360,1749978645249,-3000.0,0.0002364,2]
[365899362,1749978645259,-434.3016927,0.00023642,2]
[365899364,1749978645268,-3000.0,0.0002365,2]
[365899366,1749978645277,-1460.7552605,0.00023659,9]
[365899368,1749978645287,-3000.0,0.0002366,2]
[365899370,1749978645296,-500.0,0.00023663,2]
[365899372,1749978645307,-3000.0,0.0002367,2]
[365899374,1749978645317,-3000.0,0.0002368,2]
[365899376,1749978645327,-3000.0,0.0002369,2]
[365899378,1749978645336,-500.0,0.00023694,9]
[365899380,1749978645346,-500.0,0.00023694,9]
[365899382,1749978645355,-3000.0,0.000237,2]
[365899384,1749978645367,-1054.06,0.000237,7]
[365899386,1749978645376,-2469.89,0.000237,2]
[365899388,1749978645388,-3000.0,0.0002371,2]
[365899390,1749978645398,-3000.0,0.0002372,2]
[365899392,1749978645408,-3000.0,0.0002373,2]
[365899394,1749978645417,-3000.0,0.0002374,2]
[365899396,1749978645426,-5865.709584,0.0002375,2]
[365899399,1749978645436,-460.0,0.00023757,2]
[365899400,1749978645446,-909.74,0.00023757,2]
[365899402,1749978645459,-1167.27,0.00023757,2]
[365899405,1749978645470,-1001.26,0.00023757,2]
[365899408,1749978645479,-460.0,0.00023758,2]
[365899410,1749978645488,-456.12189427,0.00023758,2]
[365899412,1749978645497,-2249.89,0.00023758,2]
[365899413,1749978645508,-2585.78,0.00023758,2]
[365899416,1749978645519,-2542.55,0.00023758,2]
[365899419,1749978645527,-1089.08,0.00023758,2]
[365899422,1749978645536,-460.0,0.00023758,2]
[365899425,1749978645546,-460.0,0.00023758,2]
[365899427,1749978645556,-460.0,0.00023758,2]
[365899430,1749978645565,-460.0,0.00023758,2]
[365899432,1749978645574,-661.85,0.00023758,2]
[365899434,1749978645584,-1332.84,0.00023758,2]
[365899436,1749978645593,-489.47,0.00023758,2]
[365899438,1749978645602,-44987.60648635,0.0002376,2]
[365899440,1749978645610,-151.0,0.0002376,7]
[365899442,1749978645620,-151.0,0.0002376,7]
[365899444,1749978645629,-151.0,0.0002376,7]
[365899446,1749978645641,-150.0,0.00023773,2]
[365899448,1749978645651,-500.0,0.00023773,2]
[365899450,1749978645660,-500.0,0.00023773,2]
[365899452,1749978645670,-500.0,0.00023773,2]
[365899454,1749978645679,-500.0,0.00023773,2]
[365899456,1749978645688,-500.0,0.00023773,2]
[365899458,1749978645698,-4157.18,0.00023773,2]
[365899460,1749978645707,-1177.96,0.00023773,2]
[365899462,1749978645716,-460.0,0.00023773,2]
[365899464,1749978645725,-460.0,0.00023773,2]
[365899466,1749978645734,-460.0,0.00023773,2]
[365899468,1749978645743,-460.0,0.00023773,2]
[365899470,1749978645752,-475.7,0.00023773,2]
[365899472,1749978645763,-460.0,0.00023773,2]
[365899474,1749978645773,-460.0,0.00023773,2]
[365899476,1749978645784,-460.0,0.00023773,2]
[365899478,1749978645793,-485.11,0.00023775,2]
[365899480,1749978645803,-1205.04,0.00023775,2]
[365899482,1749978645812,-740.0,0.00023775,2]
[365899484,1749978645823,-1396.02,0.00023775,2]
[365899486,1749978645833,-1602.96,0.00023775,2]
[365899488,1749978645843,-666.0,0.00023775,2]
[365899490,1749978645852,-2759.97,0.00023775,2]
[365899492,1749978645861,-461.99,0.00023778,2]
[365899494,1749978645871,-460.0,0.00023778,2]
[365899496,1749978645882,-555.67,0.00023778,2]
[365899499,1749978645892,-460.0,0.00023778,2]
[365899501,1749978645901,-588.85,0.00023778,2]
[365899503,1749978645910,-490.16,0.00023778,2]
[365899515,1749978646016,-461.74,0.00023778,2]
[365899517,1749978646026,-215.0738,0.000238,2]
[365899520,1749978646036,-1460.7552605,0.00023831,10]
[365899522,1749978646046,-151.0,0.00023835,7]
[365899524,1749978646055,-151.0,0.00023835,7]
[365899526,1749978646064,-151.0,0.00023835,7]
[365899528,1749978646074,-500.0,0.00023876,2]
[365899530,1749978646084,-160.0,0.00023877,5]
[365899532,1749978646094,-500.0,0.00023895,2]
[365899534,1749978646103,-151.0,0.000239,7]
[365899536,1749978646114,-151.0,0.000239,7]
[365899538,1749978646123,-151.0,0.000239,7]
[365899540,1749978646133,-554.045273,0.000239,2]
[365899542,1749978646142,-554.045273,0.000239,2]
[365899544,1749978646152,-5358.1001289,0.000239,2]
[365899546,1749978646161,-639.0,0.000239,2]
[365899548,1749978646171,-151.0,0.000239,7]
[365899550,1749978646181,-661.92614653,0.000239,2]
[365899552,1749978646190,-500.0,0.00023907,2]
[365899554,1749978646203,-2200.0,0.00023911,2]
[365899556,1749978646212,-2000.0,0.00023925,2]
[365899558,1749978646223,-688.90390881,0.00023934,2]
[365899560,1749978646232,-500.0,0.00023937,2]
[365899562,1749978646241,-806.94237327,0.00023949,2]
[365899564,1749978646251,-500.0,0.00023972,2]
[365899566,1749978646260,-207.93432221,0.00023999,2]
[365899569,1749978646269,-2296.82970682,0.00024,2]
[365899571,1749978646279,-2747.93606732,0.00024,2]
[365899573,1749978646288,-73396.93262904,0.00024,2]
[365899575,1749978646297,-2545.08255817,0.00024,3]
[365899577,1749978646307,-500.0,0.00024,2]
[365899579,1749978646316,-424.40141186,0.00024,3]
[365899581,1749978646325,-5000.0,0.00024,7]
[365899583,1749978646335,-151525.70152778,0.00024,30]
[365899585,1749978646346,-10056.817173,0.00024,2]
[365899588,1749978646356,-1993.0,0.00024,2]
[365899590,1749978646366,-160.0,0.00024,7]
[365899592,1749978646376,-61921.11,0.00024,2]
[365899593,1749978646386,-500.0,0.00024,2]
[365899595,1749978646398,-500.0,0.00024,2]
[365899597,1749978646407,-500.0,0.00024,2]
[365899599,1749978646417,-500.0,0.00024,2]
[365899600,1749978646426,-500.0,0.00024,2]
[365899601,1749978646436,-500.0,0.00024,2]
[365899602,1749978646447,-500.0,0.00024,2]
[365899603,1749978646461,-500.0,0.00024,2]
[365899604,1749978646470,-266.0,0.00024,2]
[365899605,1749978646479,-19205.00420667,0.00024,2]
[365899606,1749978646489,-65572.18064751,0.00024,2]
[365899607,1749978646499,-1685.31837068,0.00024,2]
[365899608,1749978646508,-10101.76997567,0.00024,2]
[365899609,1749978646517,-9635.44345755,0.00024,2]
[365899610,1749978646527,-451.30223414,0.00024,2]
[365899611,1749978646536,-5000.0,0.00024,30]
[365899613,1749978646545,-16185.0,0.00024,30]
[365899615,1749978646553,-1599.78324824,0.00024,30]
[365899621,1749978646604,-7678.56611319,0.00024,30]
[365899623,1749978646616,-1145.57690442,0.00024,30]
[365899628,1749978646652,-1809.93,0.00020486,2]
[365899630,1749978646662,-460.0,0.00020744,2]
[365899632,1749978646671,-1809.93,0.0002076,2]
[365899634,1749978646680,-1809.93,0.00021034,2]
[365899636,1749978646690,-1809.93,0.00021308,2]
[365899638,1749978646701,-1809.93,0.00021582,2]
[365899640,1749978646710,-10258.6896239,0.00024,30]
[365899654,1749978646831,-467.65,0.00020469,2]
[365899656,1749978646840,-440.0,0.00020486,2]
[365899658,1749978646849,-440.0,0.00020486,2]
[365899660,1749978646858,-112.74999985,0.00021856,2]
[365901781,1749978768223,159.242414,0.00019556,2]
[365901782,1749978815973,200.20266715,0.00019784,2]
[365901783,1749979056145,201.02536357,0.00021917,60]
[365901784,1749979059450,200.0,0.00024658,120]
[365901785,1749979069121,200.0,0.0002,2]
[365901786,1749979082498,200.0,0.0002,30]
[365901787,1749979091644,201.0,0.0002,2]
[365901788,1749979199768,183.727244,0.00019451,2]
[365901790,1749979414375,321.611764,0.00013699,2]
[365901792,1749979423721,13403.0557743,0.00019423,2]
[365901793,1749979423747,2200.3578288,0.00019423,2]
[365901794,1749979428592,4321.58331606,0.0002,2]
[365901795,1749979463908,628.370625,0.00019449,2]
[365901796,1749979547597,214.66567055,0.00013699,2]
[365901797,1749979561181,1482.04655567,0.0002,2]
[365901798,1749979604319,180.03910747,0.00019637,2]
[365901799,1749979625342,-225.79799584,0.00020003,2]